[Event "Titled Tuesday Blitz August 15 Late 2023"]
[White "Kula, Robert"]
[Black "ExchangeAB"]
[WhiteFideId "1101218"]
[WhiteElo "2265"]
[BlackElo "2417"]
[Result "1-0"]
[Round "8"]
[TimeControl "180+1"]
[Date "2023.08.15"]
[WhiteClock "0:00:05"]
[BlackClock "0:00:03"]
[Board "108"]

1. d4 {[%clk 0:03:00]}  Nf6 {[%clk 0:02:59]} 2. c4 {[%clk 0:03:00]}  c6 {[%clk 0:03:00]} 3. Nc3 {[%clk 0:03:01]}  d5 {[%clk 0:03:01]} 4. Bf4 {[%clk 0:02:58]}  dxc4 {[%clk 0:03:01]} 5. e3 {[%clk 0:02:58]}  b5 {[%clk 0:03:00]} 6. a4 {[%clk 0:02:58]}  Qb6 {[%clk 0:02:40]} 7. Nf3 {[%clk 0:02:43]}  e6 {[%clk 0:02:33]} 8. h3 {[%clk 0:02:31]}  Nd5 {[%clk 0:02:19]} 9. Nxd5 {[%clk 0:02:21]}  cxd5 {[%clk 0:02:20]} 10. Be2 {[%clk 0:02:19]}  b4 {[%clk 0:02:10]} 11. O-O {[%clk 0:02:18]}  Bd6 {[%clk 0:02:03]} 12. a5 {[%clk 0:02:17]}  Qd8 {[%clk 0:02:02]} 13. Bxd6 {[%clk 0:02:01]}  Qxd6 {[%clk 0:02:03]} 14. Ne5 {[%clk 0:02:02]}  Nc6 {[%clk 0:01:42]} 15. f4 {[%clk 0:02:00]}  O-O {[%clk 0:01:41]} 16. Qe1 {[%clk 0:01:50]}  Rb8 {[%clk 0:01:37]} 17. Ra4 {[%clk 0:01:45]}  b3 {[%clk 0:01:34]} 18. g4 {[%clk 0:01:23]}  f6 {[%clk 0:01:33]} 19. Nxc6 {[%clk 0:01:13]}  Qxc6 {[%clk 0:01:34]} 20. Ra3 {[%clk 0:01:13]}  Bd7 {[%clk 0:01:24]} 21. Qc3 {[%clk 0:01:12]}  Qd6 {[%clk 0:01:22]} 22. Kg2 {[%clk 0:01:07]}  Rbe8 {[%clk 0:01:22]} 23. e4 {[%clk 0:00:56]}  e5 {[%clk 0:01:05]} 24. dxe5 {[%clk 0:00:31]}  fxe5 {[%clk 0:01:06]} 25. f5 {[%clk 0:00:25]}  Bb5 {[%clk 0:00:46]} 26. Rd1 {[%clk 0:00:22]}  d4 {[%clk 0:00:42]} 27. Bxc4+ {[%clk 0:00:22]}  Bxc4 {[%clk 0:00:39]} 28. Qxc4+ {[%clk 0:00:22]}  Kh8 {[%clk 0:00:40]} 29. Rxb3 {[%clk 0:00:20]}  Rc8 {[%clk 0:00:38]} 30. Qe2 {[%clk 0:00:19]}  h6 {[%clk 0:00:32]} 31. Kg1 {[%clk 0:00:17]}  Rb8 {[%clk 0:00:28]} 32. Qc4 {[%clk 0:00:12]}  Rxb3 {[%clk 0:00:26]} 33. Qxb3 {[%clk 0:00:12]}  Rb8 {[%clk 0:00:27]} 34. Qc2 {[%clk 0:00:09]}  Qb4 {[%clk 0:00:25]} 35. Qc7 {[%clk 0:00:09]}  Qxb2 {[%clk 0:00:19]} 36. Qxe5 {[%clk 0:00:07]}  Rd8 {[%clk 0:00:04]} 37. f6 {[%clk 0:00:07]}  Rg8 {[%clk 0:00:01]} 38. f7 {[%clk 0:00:07]}  Rf8 {[%clk 0:00:01]} 39. Qe7 {[%clk 0:00:05]}  Qb8 {[%clk 0:00:01]} 40. Rxd4 {[%clk 0:00:05]}  Qg3+ {[%clk 0:00:01]} 41. Kf1 {[%clk 0:00:05]}  Qf3+ {[%clk 0:00:01]} 42. Ke1 {[%clk 0:00:05]}  Qe3+ {[%clk 0:00:02]} 43. Kf1 {[%clk 0:00:05]}  Qb3 {[%clk 0:00:03]} 44. Qxf8+ {[%clk 0:00:04]}  Kh7 {[%clk 0:00:02]} 45. Qg8+ {[%clk 0:00:05]}  Kg6 {[%clk 0:00:02]} 46. f8=Q {[%clk 0:00:05]}  Qb1+ {[%clk 0:00:02]} 47. Kg2 {[%clk 0:00:05]}  Qb2+ {[%clk 0:00:02]} 48. Kg3 {[%clk 0:00:06]}  Qxd4 {[%clk 0:00:03]} 49. Qf5# {[%clk 0:00:05]} 1-0


[Site "https://www.chess.com"]

[Event "Titled Tuesday Blitz August 15 Late 2023"]
[White "LuxLinster"]
[Black "Wafa, Shrook"]
[BlackFideId "10609970"]
[WhiteElo "2255"]
[BlackElo "2402"]
[Result "0-1"]
[Round "8"]
[TimeControl "180+1"]
[Date "2023.08.15"]
[WhiteClock "0:00:00"]
[BlackClock "0:00:41"]
[Board "109"]

1. d4 {[%clk 0:02:45]}  d5 {[%clk 0:02:59]} 2. c4 {[%clk 0:02:45]}  c6 {[%clk 0:02:59]} 3. Nf3 {[%clk 0:02:44]}  Nf6 {[%clk 0:02:59]} 4. g3 {[%clk 0:02:45]}  Bf5 {[%clk 0:02:59]} 5. Nc3 {[%clk 0:02:41]}  dxc4 {[%clk 0:02:57]} 6. Bg2 {[%clk 0:02:32]}  e6 {[%clk 0:02:56]} 7. O-O {[%clk 0:02:31]}  Be7 {[%clk 0:02:55]} 8. Ne5 {[%clk 0:02:31]}  O-O {[%clk 0:02:54]} 9. e4 {[%clk 0:02:27]}  Bg6 {[%clk 0:02:54]} 10. Nxc4 {[%clk 0:02:27]}  Nbd7 {[%clk 0:02:53]} 11. Be3 {[%clk 0:02:19]}  Nb6 {[%clk 0:02:52]} 12. Ne5 {[%clk 0:02:19]}  Bd6 {[%clk 0:02:52]} 13. Qb3 {[%clk 0:02:07]}  Bxe5 {[%clk 0:02:48]} 14. dxe5 {[%clk 0:02:08]}  Nfd7 {[%clk 0:02:49]} 15. f4 {[%clk 0:02:07]}  Qe7 {[%clk 0:02:42]} 16. a4 {[%clk 0:01:55]}  Nc5 {[%clk 0:02:40]} 17. Qa3 {[%clk 0:01:45]}  Nbd7 {[%clk 0:02:39]} 18. Rfd1 {[%clk 0:01:39]}  b6 {[%clk 0:02:36]} 19. Rd6 {[%clk 0:01:26]}  Rad8 {[%clk 0:02:27]} 20. Rxc6 {[%clk 0:01:19]}  Nb8 {[%clk 0:02:19]} 21. Rxc5 {[%clk 0:01:06]}  bxc5 {[%clk 0:02:14]} 22. Bxc5 {[%clk 0:01:07]}  Qb7 {[%clk 0:02:09]} 23. Bxf8 {[%clk 0:01:07]}  Rxf8 {[%clk 0:02:09]} 24. Rd1 {[%clk 0:01:02]}  Bh5 {[%clk 0:02:09]} 25. Rd2 {[%clk 0:00:58]}  Nc6 {[%clk 0:02:05]} 26. Nb5 {[%clk 0:00:48]}  Qb6+ {[%clk 0:02:01]} 27. Kf1 {[%clk 0:00:43]}  h6 {[%clk 0:01:52]} 28. Bf3 {[%clk 0:00:35]}  Bxf3 {[%clk 0:01:49]} 29. Qxf3 {[%clk 0:00:36]}  Qa6 {[%clk 0:01:48]} 30. b3 {[%clk 0:00:29]}  Rb8 {[%clk 0:01:45]} 31. Qd3 {[%clk 0:00:25]}  Qb6 {[%clk 0:01:19]} 32. Ke2 {[%clk 0:00:21]}  a6 {[%clk 0:01:18]} 33. Nd6 {[%clk 0:00:15]}  Qxb3 {[%clk 0:01:18]} 34. Qxb3 {[%clk 0:00:16]}  Rxb3 {[%clk 0:01:17]} 35. Ra2 {[%clk 0:00:13]}  Nb4 {[%clk 0:01:06]} 36. Rd2 {[%clk 0:00:11]}  Ra3 {[%clk 0:01:04]} 37. Rd4 {[%clk 0:00:11]}  Rxa4 {[%clk 0:01:04]} 38. Nb7 {[%clk 0:00:07]}  Ra2+ {[%clk 0:01:03]} 39. Kf3 {[%clk 0:00:07]}  Nc6 {[%clk 0:01:01]} 40. Rc4 {[%clk 0:00:04]}  Na5 {[%clk 0:00:59]} 41. Nxa5 {[%clk 0:00:03]}  Rxa5 {[%clk 0:00:59]} 42. Rc8+ {[%clk 0:00:04]}  Kh7 {[%clk 0:00:58]} 43. Rc7 {[%clk 0:00:05]}  Kg6 {[%clk 0:00:58]} 44. g4 {[%clk 0:00:05]}  Ra3+ {[%clk 0:00:57]} 45. Kf2 {[%clk 0:00:05]}  f6 {[%clk 0:00:55]} 46. exf6 {[%clk 0:00:05]}  gxf6 {[%clk 0:00:55]} 47. h4 {[%clk 0:00:04]}  h5 {[%clk 0:00:48]} 48. f5+ {[%clk 0:00:04]}  exf5 {[%clk 0:00:48]} 49. gxf5+ {[%clk 0:00:04]}  Kh6 {[%clk 0:00:48]} 50. Rf7 {[%clk 0:00:05]}  Rh3 {[%clk 0:00:47]} 51. Rxf6+ {[%clk 0:00:05]}  Kh7 {[%clk 0:00:47]} 52. Rxa6 {[%clk 0:00:04]}  Rxh4 {[%clk 0:00:47]} 53. Kf3 {[%clk 0:00:05]}  Rh1 {[%clk 0:00:47]} 54. e5 {[%clk 0:00:04]}  Rf1+ {[%clk 0:00:47]} 55. Ke4 {[%clk 0:00:04]}  h4 {[%clk 0:00:47]} 56. e6 {[%clk 0:00:02]}  Re1+ {[%clk 0:00:43]} 57. Kf4 {[%clk 0:00:02]}  h3 {[%clk 0:00:43]} 58. Ra3 {[%clk 0:00:02]}  Rf1+ {[%clk 0:00:41]} 59. Kg3 {[%clk 0:00:00]}  Kg7 {[%clk 0:00:41]} 0-1


[Site "https://www.chess.com"]

[Event "Titled Tuesday Blitz August 15 Late 2023"]
[White "Labussiere, Yago"]
[Black "De Souza, Cristiano Gomes"]
[WhiteFideId "2186969"]
[BlackFideId "2151758"]
[WhiteElo "2365"]
[BlackElo "2253"]
[Result "0-1"]
[Round "8"]
[TimeControl "180+1"]
[Date "2023.08.15"]
[WhiteClock "0:00:25"]
[BlackClock "0:01:18"]
[Board "110"]

1. d4 {[%clk 0:03:00]}  Nf6 {[%clk 0:02:54]} 2. c4 {[%clk 0:02:59]}  g6 {[%clk 0:02:54]} 3. Nc3 {[%clk 0:02:58]}  Bg7 {[%clk 0:02:54]} 4. e4 {[%clk 0:02:58]}  d6 {[%clk 0:02:53]} 5. Nf3 {[%clk 0:02:58]}  O-O {[%clk 0:02:53]} 6. Be2 {[%clk 0:02:58]}  e5 {[%clk 0:02:54]} 7. d5 {[%clk 0:02:57]}  Nbd7 {[%clk 0:02:53]} 8. O-O {[%clk 0:02:45]}  Nc5 {[%clk 0:02:52]} 9. Qc2 {[%clk 0:02:43]}  a5 {[%clk 0:02:51]} 10. Bg5 {[%clk 0:02:38]}  h6 {[%clk 0:02:50]} 11. Be3 {[%clk 0:02:37]}  Nfd7 {[%clk 0:02:48]} 12. Nd2 {[%clk 0:02:34]}  f5 {[%clk 0:02:47]} 13. f3 {[%clk 0:02:35]}  b6 {[%clk 0:02:44]} 14. b3 {[%clk 0:02:31]}  f4 {[%clk 0:02:36]} 15. Bf2 {[%clk 0:02:30]}  h5 {[%clk 0:02:35]} 16. a3 {[%clk 0:02:13]}  g5 {[%clk 0:02:30]} 17. b4 {[%clk 0:02:12]}  Nb7 {[%clk 0:02:28]} 18. Nb3 {[%clk 0:02:02]}  Nf6 {[%clk 0:02:24]} 19. c5 {[%clk 0:02:00]}  axb4 {[%clk 0:02:23]} 20. axb4 {[%clk 0:02:00]}  Rxa1 {[%clk 0:02:23]} 21. Rxa1 {[%clk 0:02:00]}  Nxc5 {[%clk 0:02:23]} 22. bxc5 {[%clk 0:02:01]}  bxc5 {[%clk 0:02:22]} 23. Kh1 {[%clk 0:01:42]}  g4 {[%clk 0:02:21]} 24. Bh4 {[%clk 0:01:42]}  Qe8 {[%clk 0:02:20]} 25. Rg1 {[%clk 0:01:37]}  Qg6 {[%clk 0:02:18]} 26. g3 {[%clk 0:01:34]}  Bh6 {[%clk 0:02:16]} 27. Qd1 {[%clk 0:01:14]}  Kh7 {[%clk 0:02:14]} 28. gxf4 {[%clk 0:01:09]}  exf4 {[%clk 0:02:10]} 29. Bxf6 {[%clk 0:01:02]}  Qxf6 {[%clk 0:02:08]} 30. fxg4 {[%clk 0:00:52]}  Qxc3 {[%clk 0:02:04]} 31. gxh5 {[%clk 0:00:50]}  f3 {[%clk 0:02:03]} 32. Bd3 {[%clk 0:00:49]}  Qe5 {[%clk 0:02:00]} 33. Rg3 {[%clk 0:00:41]}  f2 {[%clk 0:01:55]} 34. Kg2 {[%clk 0:00:32]}  Rf4 {[%clk 0:01:29]} 35. Qe2 {[%clk 0:00:27]}  f1=Q+ {[%clk 0:01:21]} 36. Qxf1 {[%clk 0:00:25]}  Rxf1 {[%clk 0:01:21]} 37. Kxf1 {[%clk 0:00:25]}  Bf4 {[%clk 0:01:18]} 0-1


[Site "https://www.chess.com"]

[Event "Titled Tuesday Blitz August 15 Late 2023"]
[White "Vaglio Munoz, Jaime"]
[Black "Topalov, Aleksandar"]
[WhiteFideId "6500145"]
[BlackFideId "925659"]
[WhiteElo "2243"]
[BlackElo "2362"]
[Result "0-1"]
[Round "8"]
[TimeControl "180+1"]
[Date "2023.08.15"]
[WhiteClock "0:00:14"]
[BlackClock "0:00:18"]
[Board "111"]

1. Nf3 {[%clk 0:03:00]}  e6 {[%clk 0:02:59]} 2. c4 {[%clk 0:02:57]}  f5 {[%clk 0:02:59]} 3. b3 {[%clk 0:02:57]}  Nf6 {[%clk 0:02:59]} 4. Bb2 {[%clk 0:02:57]}  Be7 {[%clk 0:03:00]} 5. g3 {[%clk 0:02:57]}  O-O {[%clk 0:03:00]} 6. Bg2 {[%clk 0:02:58]}  d6 {[%clk 0:02:59]} 7. d4 {[%clk 0:02:55]}  Ne4 {[%clk 0:02:55]} 8. O-O {[%clk 0:02:55]}  Bf6 {[%clk 0:02:55]} 9. Nbd2 {[%clk 0:02:54]}  Nxd2 {[%clk 0:02:55]} 10. Nxd2 {[%clk 0:02:54]}  e5 {[%clk 0:02:54]} 11. d5 {[%clk 0:02:53]}  e4 {[%clk 0:02:47]} 12. Bxf6 {[%clk 0:02:49]}  Qxf6 {[%clk 0:02:47]} 13. e3 {[%clk 0:02:49]}  a5 {[%clk 0:02:46]} 14. Rb1 {[%clk 0:02:48]}  Nd7 {[%clk 0:02:45]} 15. Qc2 {[%clk 0:02:47]}  Nc5 {[%clk 0:02:45]} 16. Qb2 {[%clk 0:02:46]}  Qh6 {[%clk 0:02:43]} 17. Qc3 {[%clk 0:02:39]}  Bd7 {[%clk 0:02:39]} 18. a3 {[%clk 0:02:37]}  g5 {[%clk 0:02:33]} 19. b4 {[%clk 0:02:37]}  axb4 {[%clk 0:02:32]} 20. axb4 {[%clk 0:02:38]}  Nd3 {[%clk 0:02:29]} 21. c5 {[%clk 0:02:33]}  Bb5 {[%clk 0:02:26]} 22. cxd6 {[%clk 0:02:32]}  cxd6 {[%clk 0:02:26]} 23. Qc7 {[%clk 0:02:31]}  Ne5 {[%clk 0:02:10]} 24. Rfc1 {[%clk 0:02:18]}  Nd3 {[%clk 0:02:00]} 25. Qxb7 {[%clk 0:02:11]}  Rab8 {[%clk 0:01:59]} 26. Qe7 {[%clk 0:02:09]}  Nxc1 {[%clk 0:01:58]} 27. Rxc1 {[%clk 0:02:10]}  Qf6 {[%clk 0:01:50]} 28. Qxf6 {[%clk 0:02:07]}  Rxf6 {[%clk 0:01:50]} 29. g4 {[%clk 0:02:07]}  Bd3 {[%clk 0:01:38]} 30. gxf5 {[%clk 0:02:07]}  Rxf5 {[%clk 0:01:39]} 31. Nxe4 {[%clk 0:02:05]}  Bxe4 {[%clk 0:01:13]} 32. Bxe4 {[%clk 0:02:06]}  Rf7 {[%clk 0:01:13]} 33. Rc6 {[%clk 0:01:56]}  Rxb4 {[%clk 0:01:11]} 34. Rc8+ {[%clk 0:01:44]}  Kg7 {[%clk 0:01:10]} 35. Re8 {[%clk 0:01:43]}  g4 {[%clk 0:01:07]} 36. Re6 {[%clk 0:01:39]}  Rb2 {[%clk 0:01:07]} 37. Rxd6 {[%clk 0:01:32]}  Rfxf2 {[%clk 0:01:06]} 38. Rd7+ {[%clk 0:01:29]}  Kf6 {[%clk 0:01:06]} 39. Rd6+ {[%clk 0:01:20]}  Kg5 {[%clk 0:01:02]} 40. Bxh7 {[%clk 0:01:13]}  Rfd2 {[%clk 0:01:01]} 41. Rg6+ {[%clk 0:01:07]}  Kh5 {[%clk 0:01:01]} 42. Rf6 {[%clk 0:01:07]}  Rg2+ {[%clk 0:00:59]} 43. Kf1 {[%clk 0:01:06]}  Rxh2 {[%clk 0:00:58]} 44. Kg1 {[%clk 0:01:06]}  Rbg2+ {[%clk 0:00:52]} 45. Kf1 {[%clk 0:01:06]}  Rd2 {[%clk 0:00:52]} 46. Kg1 {[%clk 0:01:03]}  g3 {[%clk 0:00:49]} 47. Be4 {[%clk 0:00:59]}  Kg5 {[%clk 0:00:39]} 48. Rg6+ {[%clk 0:00:58]}  Kh4 {[%clk 0:00:36]} 49. Rf6 {[%clk 0:00:54]}  Rhe2 {[%clk 0:00:30]} 50. Rh6+ {[%clk 0:00:46]}  Kg4 {[%clk 0:00:24]} 51. Rg6+ {[%clk 0:00:46]}  Kh5 {[%clk 0:00:22]} 52. Kf1 {[%clk 0:00:19]}  Rxe3 {[%clk 0:00:19]} 53. Re6 {[%clk 0:00:14]}  Rf2+ {[%clk 0:00:17]} 54. Kg1 {[%clk 0:00:14]}  Re1# {[%clk 0:00:18]} 0-1


[Site "https://www.chess.com"]

[Event "Titled Tuesday Blitz August 15 Late 2023"]
[White "Fernandez Hernandez, Gerardo"]
[Black "Vifleemskaia, Svetlana"]
[WhiteFideId "2207400"]
[BlackFideId "4129490"]
[WhiteElo "2238"]
[BlackElo "2361"]
[Result "1-0"]
[Round "8"]
[TimeControl "180+1"]
[Date "2023.08.15"]
[WhiteClock "0:00:28"]
[BlackClock "0:00:48"]
[Board "112"]

1. e4 {[%clk 0:03:00]}  e5 {[%clk 0:02:59]} 2. Nf3 {[%clk 0:03:00]}  Nc6 {[%clk 0:03:00]} 3. Bc4 {[%clk 0:03:00]}  Nf6 {[%clk 0:02:59]} 4. d3 {[%clk 0:03:00]}  Be7 {[%clk 0:02:59]} 5. c3 {[%clk 0:02:58]}  O-O {[%clk 0:03:00]} 6. Nbd2 {[%clk 0:02:58]}  d5 {[%clk 0:03:01]} 7. exd5 {[%clk 0:02:57]}  Nxd5 {[%clk 0:03:02]} 8. O-O {[%clk 0:02:57]}  Nb6 {[%clk 0:03:02]} 9. Bb5 {[%clk 0:02:56]}  f6 {[%clk 0:02:57]} 10. Re1 {[%clk 0:02:47]}  a6 {[%clk 0:02:56]} 11. Bxc6 {[%clk 0:02:47]}  bxc6 {[%clk 0:02:57]} 12. d4 {[%clk 0:02:43]}  exd4 {[%clk 0:02:55]} 13. Nxd4 {[%clk 0:02:43]}  Bd7 {[%clk 0:02:39]} 14. Qb3+ {[%clk 0:02:30]}  Kh8 {[%clk 0:02:31]} 15. Ne4 {[%clk 0:02:27]}  Bd6 {[%clk 0:02:25]} 16. Nxd6 {[%clk 0:02:19]}  cxd6 {[%clk 0:02:25]} 17. Bf4 {[%clk 0:02:17]}  d5 {[%clk 0:02:13]} 18. Bd6 {[%clk 0:02:10]}  Re8 {[%clk 0:02:12]} 19. Rxe8+ {[%clk 0:02:09]}  Bxe8 {[%clk 0:02:11]} 20. Bc5 {[%clk 0:02:07]}  Nc4 {[%clk 0:02:11]} 21. Qc2 {[%clk 0:01:46]}  Bd7 {[%clk 0:02:06]} 22. Re1 {[%clk 0:01:41]}  g6 {[%clk 0:01:44]} 23. Be7 {[%clk 0:01:38]}  Qe8 {[%clk 0:01:44]} 24. Bxf6+ {[%clk 0:01:37]}  Kg8 {[%clk 0:01:44]} 25. Rxe8+ {[%clk 0:01:37]}  Rxe8 {[%clk 0:01:45]} 26. h3 {[%clk 0:01:32]}  Kf7 {[%clk 0:01:45]} 27. Bg5 {[%clk 0:01:30]}  Re5 {[%clk 0:01:43]} 28. Bf4 {[%clk 0:01:22]}  Re4 {[%clk 0:01:43]} 29. Bg5 {[%clk 0:01:10]}  c5 {[%clk 0:01:42]} 30. Nf3 {[%clk 0:01:03]}  Bf5 {[%clk 0:01:41]} 31. Qa4 {[%clk 0:01:00]}  Nxb2 {[%clk 0:01:18]} 32. Qxa6 {[%clk 0:00:46]}  Nd1 {[%clk 0:01:08]} 33. Qb7+ {[%clk 0:00:39]}  Ke6 {[%clk 0:01:08]} 34. Be3 {[%clk 0:00:34]}  Nxc3 {[%clk 0:00:55]} 35. Ng5+ {[%clk 0:00:33]}  Kf6 {[%clk 0:00:53]} 36. Nxe4+ {[%clk 0:00:32]}  Bxe4 {[%clk 0:00:48]} 37. Bxc5 {[%clk 0:00:28]} 1-0


[Site "https://www.chess.com"]

[Event "Titled Tuesday Blitz August 15 Late 2023"]
[White "Florianovitz, Derlei Alex"]
[Black "Ouellet, Maili-Jade"]
[WhiteFideId "2114178"]
[BlackFideId "2620472"]
[WhiteElo "2175"]
[BlackElo "2328"]
[Result "0-1"]
[Round "8"]
[TimeControl "180+1"]
[Date "2023.08.15"]
[WhiteClock "0:01:27"]
[BlackClock "0:01:34"]
[Board "117"]

1. e4 {[%clk 0:03:00]}  e5 {[%clk 0:02:59]} 2. Nf3 {[%clk 0:02:57]}  Nc6 {[%clk 0:02:59]} 3. Bb5 {[%clk 0:02:57]}  a6 {[%clk 0:02:58]} 4. Ba4 {[%clk 0:02:57]}  Nf6 {[%clk 0:02:57]} 5. O-O {[%clk 0:02:57]}  Be7 {[%clk 0:02:49]} 6. Re1 {[%clk 0:02:56]}  b5 {[%clk 0:02:48]} 7. Bb3 {[%clk 0:02:57]}  O-O {[%clk 0:02:45]} 8. c3 {[%clk 0:02:56]}  d5 {[%clk 0:02:43]} 9. exd5 {[%clk 0:02:57]}  Nxd5 {[%clk 0:02:43]} 10. Nxe5 {[%clk 0:02:58]}  Nxe5 {[%clk 0:02:40]} 11. Rxe5 {[%clk 0:02:59]}  Be6 {[%clk 0:02:37]} 12. Qe1 {[%clk 0:02:43]}  c6 {[%clk 0:02:20]} 13. Rxe6 {[%clk 0:02:34]}  fxe6 {[%clk 0:02:19]} 14. Qxe6+ {[%clk 0:02:35]}  Kh8 {[%clk 0:02:19]} 15. Qxc6 {[%clk 0:02:35]}  Nf4 {[%clk 0:02:16]} 16. Qf3 {[%clk 0:01:58]}  Qd3 {[%clk 0:02:13]} 17. Qxd3 {[%clk 0:01:48]}  Nxd3 {[%clk 0:02:12]} 18. Na3 {[%clk 0:01:49]}  Bc5 {[%clk 0:02:09]} 19. Bc2 {[%clk 0:01:40]}  Bxf2+ {[%clk 0:02:08]} 20. Kh1 {[%clk 0:01:39]}  Rae8 {[%clk 0:02:07]} 21. g3 {[%clk 0:01:35]}  Re1+ {[%clk 0:02:00]} 22. Kg2 {[%clk 0:01:35]}  Rg1+ {[%clk 0:01:57]} 23. Kh3 {[%clk 0:01:34]}  Nxc1 {[%clk 0:01:50]} 24. d4 {[%clk 0:01:32]}  Be3 {[%clk 0:01:36]} 25. c4 {[%clk 0:01:27]}  b4 {[%clk 0:01:34]} 0-1


[Site "https://www.chess.com"]

[Event "Titled Tuesday Blitz August 15 Late 2023"]
[White "UgarteCesar"]
[Black "Ottosen, David"]
[BlackFideId "2603080"]
[WhiteElo "2319"]
[BlackElo "2131"]
[Result "1/2-1/2"]
[Round "8"]
[TimeControl "180+1"]
[Date "2023.08.15"]
[WhiteClock "0:02:03"]
[BlackClock "0:02:26"]
[Board "118"]

1. d4 {[%clk 0:03:00]}  d5 {[%clk 0:02:59]} 2. Nf3 {[%clk 0:02:59]}  c6 {[%clk 0:03:00]} 3. e3 {[%clk 0:02:58]}  e6 {[%clk 0:02:58]} 4. b3 {[%clk 0:02:59]}  f5 {[%clk 0:02:57]} 5. Bb2 {[%clk 0:02:58]}  Nf6 {[%clk 0:02:58]} 6. Nbd2 {[%clk 0:02:58]}  Bd6 {[%clk 0:02:58]} 7. Bd3 {[%clk 0:02:58]}  O-O {[%clk 0:02:58]} 8. O-O {[%clk 0:02:59]}  Ne4 {[%clk 0:02:59]} 9. Ne5 {[%clk 0:02:59]}  Nd7 {[%clk 0:02:59]} 10. f3 {[%clk 0:02:56]}  Nxd2 {[%clk 0:02:58]} 11. Qxd2 {[%clk 0:02:56]}  Qc7 {[%clk 0:02:57]} 12. f4 {[%clk 0:02:56]}  Nf6 {[%clk 0:02:58]} 13. c4 {[%clk 0:02:56]}  Ne4 {[%clk 0:02:57]} 14. Bxe4 {[%clk 0:02:56]}  fxe4 {[%clk 0:02:58]} 15. c5 {[%clk 0:02:56]}  Bxe5 {[%clk 0:02:57]} 16. fxe5 {[%clk 0:02:57]}  Bd7 {[%clk 0:02:57]} 17. b4 {[%clk 0:02:53]}  Rxf1+ {[%clk 0:02:55]} 18. Rxf1 {[%clk 0:02:52]}  Rf8 {[%clk 0:02:55]} 19. Qe2 {[%clk 0:02:52]}  Qd8 {[%clk 0:02:54]} 20. Qg4 {[%clk 0:02:51]}  Rxf1+ {[%clk 0:02:53]} 21. Kxf1 {[%clk 0:02:52]}  Qf8+ {[%clk 0:02:52]} 22. Kg1 {[%clk 0:02:51]}  Qf5 {[%clk 0:02:51]} 23. Qxf5 {[%clk 0:02:51]}  exf5 {[%clk 0:02:51]} 24. Kf2 {[%clk 0:02:47]}  Kf7 {[%clk 0:02:51]} 25. h4 {[%clk 0:02:45]}  Ke6 {[%clk 0:02:50]} 26. Kg3 {[%clk 0:02:44]}  Be8 {[%clk 0:02:50]} 27. Bc3 {[%clk 0:02:44]}  Bh5 {[%clk 0:02:50]} 28. a4 {[%clk 0:02:40]}  a6 {[%clk 0:02:48]} 29. Kf4 {[%clk 0:02:38]}  Be2 {[%clk 0:02:47]} 30. Kg5 {[%clk 0:02:36]}  Bd1 {[%clk 0:02:39]} 31. a5 {[%clk 0:02:35]}  Be2 {[%clk 0:02:39]} 32. Be1 {[%clk 0:02:32]}  Bd1 {[%clk 0:02:39]} 33. h5 {[%clk 0:02:24]}  Be2 {[%clk 0:02:37]} 34. Bh4 {[%clk 0:02:19]}  Bd1 {[%clk 0:02:36]} 35. h6 {[%clk 0:02:09]}  g6 {[%clk 0:02:36]} 36. Kf4 {[%clk 0:02:08]}  Be2 {[%clk 0:02:34]} 37. Bf6 {[%clk 0:02:06]}  Bd1 {[%clk 0:02:34]} 38. g3 {[%clk 0:02:06]}  Be2 {[%clk 0:02:33]} 39. Bd8 {[%clk 0:02:06]}  Bd1 {[%clk 0:02:30]} 40. Kg5 {[%clk 0:02:06]}  Be2 {[%clk 0:02:29]} 41. Bc7 {[%clk 0:02:04]}  Bd1 {[%clk 0:02:29]} 42. Bb6 {[%clk 0:02:03]}  Be2 {[%clk 0:02:26]} 43. Ba7 {[%clk 0:02:03]} 1/2-1/2


[Site "https://www.chess.com"]

[Event "Titled Tuesday Blitz August 15 Late 2023"]
[White "Navyblue1"]
[Black "Garmendiarov"]
[WhiteElo "2018"]
[BlackElo "2299"]
[Result "1-0"]
[Round "8"]
[TimeControl "180+1"]
[Date "2023.08.15"]
[WhiteClock "0:00:12"]
[BlackClock "0:00:35"]
[Board "120"]

1. d4 {[%clk 0:03:00]}  Nf6 {[%clk 0:02:59]} 2. c4 {[%clk 0:02:59]}  g6 {[%clk 0:03:00]} 3. Nc3 {[%clk 0:03:00]}  d5 {[%clk 0:03:00]} 4. cxd5 {[%clk 0:02:59]}  Nxd5 {[%clk 0:03:01]} 5. e4 {[%clk 0:02:53]}  Nxc3 {[%clk 0:03:02]} 6. bxc3 {[%clk 0:02:53]}  Bg7 {[%clk 0:03:02]} 7. Be3 {[%clk 0:02:51]}  c5 {[%clk 0:03:03]} 8. Bc4 {[%clk 0:02:50]}  O-O {[%clk 0:03:01]} 9. Ne2 {[%clk 0:02:50]}  Nc6 {[%clk 0:02:59]} 10. O-O {[%clk 0:02:50]}  Bg4 {[%clk 0:02:58]} 11. f3 {[%clk 0:02:49]}  Na5 {[%clk 0:02:58]} 12. Bd3 {[%clk 0:02:37]}  cxd4 {[%clk 0:02:57]} 13. cxd4 {[%clk 0:02:35]}  Be6 {[%clk 0:02:56]} 14. d5 {[%clk 0:02:15]}  Bxa1 {[%clk 0:02:55]} 15. Qxa1 {[%clk 0:02:14]}  f6 {[%clk 0:02:55]} 16. Qc3 {[%clk 0:02:08]}  Rc8 {[%clk 0:02:49]} 17. Qb4 {[%clk 0:01:58]}  Bd7 {[%clk 0:02:04]} 18. Bxa7 {[%clk 0:01:56]}  e6 {[%clk 0:01:53]} 19. Bb6 {[%clk 0:01:52]}  Qe8 {[%clk 0:01:44]} 20. Qxa5 {[%clk 0:01:49]}  exd5 {[%clk 0:01:43]} 21. exd5 {[%clk 0:01:48]}  Ra8 {[%clk 0:01:37]} 22. Qd2 {[%clk 0:01:44]}  Bb5 {[%clk 0:01:35]} 23. Nf4 {[%clk 0:00:41]}  Bxd3 {[%clk 0:01:17]} 24. Qxd3 {[%clk 0:00:40]}  Rxa2 {[%clk 0:01:17]} 25. d6 {[%clk 0:00:33]}  Kh8 {[%clk 0:01:11]} 26. d7 {[%clk 0:00:20]}  Qe5 {[%clk 0:01:01]} 27. d8=Q {[%clk 0:00:20]}  Rxd8 {[%clk 0:01:01]} 28. Qxd8+ {[%clk 0:00:20]}  Kg7 {[%clk 0:01:01]} 29. Qd7+ {[%clk 0:00:19]}  Kh6 {[%clk 0:01:00]} 30. Qh3+ {[%clk 0:00:18]}  Kg7 {[%clk 0:01:01]} 31. Ne6+ {[%clk 0:00:18]}  Kg8 {[%clk 0:00:57]} 32. Nd4 {[%clk 0:00:17]}  Qe3+ {[%clk 0:00:54]} 33. Kh1 {[%clk 0:00:17]}  Qf2 {[%clk 0:00:48]} 34. Rg1 {[%clk 0:00:14]}  Qb2 {[%clk 0:00:47]} 35. Qc8+ {[%clk 0:00:14]}  Kg7 {[%clk 0:00:47]} 36. Ne6+ {[%clk 0:00:14]}  Kh6 {[%clk 0:00:48]} 37. Be3+ {[%clk 0:00:13]}  Kh5 {[%clk 0:00:43]} 38. Qc5+ {[%clk 0:00:13]}  f5 {[%clk 0:00:42]} 39. Ng7+ {[%clk 0:00:13]}  Kh4 {[%clk 0:00:41]} 40. Qe7+ {[%clk 0:00:12]}  g5 {[%clk 0:00:35]} 41. Qxg5# {[%clk 0:00:12]} 1-0


[Site "https://www.chess.com"]